{"text_format":"1","workbook":"xlsx","n_sheets":1,"sheets":["Sheet1"],"not_rendered":{"charts":0,"images":0,"macros":1,"external_links":0,"defined_names":0,"comments":0,"pivot_tables":0},"unopened":[],"bounds":{"document_bytes":16777216,"sheet_cells":100000,"rows_first":2000,"rows_last":500,"rows_between":2000,"halvings":0,"cell_chars":16384,"cell_head_chars":4096},"cells_cut":0,"cells_raw":0,"read":"whole","date_system":"1900"}

{"sheet":"Sheet1","index":0,"n_rows":10,"n_cols":11,"rows_kept":10,"cut":false,"hidden":false,"merged":[]}
[100,null,null,null,null,null,null,{"$f":"FT()","v":1},{"$f":"FTARG(0.5)","v":1},{"$f":"FTARGCELL($K$1)","v":0},0.25]
[null,null,null,null,null,null,null,{"$f":"FT()","v":1},null,{"$f":"FTARGCELL($K$1)","v":0}]
[{"$f":"RAND()","v":0.76966630984515827},null,null,null,null,null,null,1,null,0]
[0.90480203407333692,null,null,null,null,null,null,1,null,0]
[null,null,null,null,null,null,null,1,null,0]
[null,null,null,null,null,null,null,1,null,0]
[null,null,null,null,null,null,null,1,null,0]
[null,null,null,null,null,null,null,1,null,0]
[null,null,null,null,null,null,null,0,null,1]
[null,null,null,null,null,null,null,1,null,0]